bitfinex/quotes_SOLUSD_20250929
["timestamp","ask_amount","ask_price","bid_price","bid_amount"]
[1759179482436,0.82,214.62,214.58,38.40011862]
[1759179484031,0.13,214.62,214.59,33.72]
[1759179484431,0.13,214.62,214.6,33.72]
[1759179485136,0.13,214.62,214.61,0.72]
[1759179485841,0.13,214.62,214.6,61.56892478]
[1759179487232,0.13,214.62,214.61,4.65961511]
[1759179487946,0.13,214.62,214.61,4.86961511]
[1759179490848,0.13,214.62,214.61,0.21]
[1759179491238,0.13,214.62,214.6,63.0879032]
[1759179491539,0.13,214.62,214.6,26.0]
[1759179491722,0.13,214.62,214.61,32.98]
[1759179493740,0.13,214.62,214.61,37.63961511]
[1759179495259,0.13,214.62,214.61,32.98]
[1759179495465,0.8,214.62,214.61,32.98]
[1759179495627,0.8,214.62,214.58,4.66026656]
[1759179495956,0.67,214.61,214.59,32.98]
[1759179497663,0.67,214.61,214.59,37.6400311]
[1759179497966,0.67,214.61,214.6,32.98]
[1759179500838,0.13,214.62,214.6,32.98]
[1759179501039,0.13,214.62,214.6,37.84976183]
[1759179501240,0.13,214.62,214.6,37.63976183]
[1759179501464,0.13,214.62,214.6,37.84976183]
[1759179502242,0.13,214.62,214.6,63.63976183]
[1759179504060,0.13,214.62,214.61,13.80559401]
[1759179504276,0.13,214.62,214.61,18.46520912]
[1759179505770,0.13,214.62,214.61,23.12265779]
[1759179505966,0.68,214.71,214.64,26.0]
[1759179506168,0.68,214.71,214.65,46.55559401]
[1759179507259,0.68,214.7,214.65,32.96]
[1759179507448,0.68,214.69,214.65,32.96]
[1759179507768,0.68,214.68,214.65,32.96]
[1759179508153,0.68,214.68,214.66,4.65852976]
[1759179508451,0.68,214.68,214.67,32.96]
[1759179508851,0.68,214.7,214.67,32.96]
[1759179509054,0.68,214.69,214.67,32.96]
[1759179509861,4.65679426,214.74,214.67,37.6182987]
[1759179510069,0.68,214.69,214.67,37.6182987]
[1759179510268,0.68,214.69,214.67,32.96]
[1759179512476,4.65701113,214.73,214.67,32.96]
[1759179512775,0.68,214.68,214.67,32.96]
[1759179512975,0.68,214.7,214.67,32.96]
[1759179513174,0.68,214.69,214.67,32.96]
[1759179513566,0.68,214.69,214.67,37.6183003]
[1759179513763,0.68,214.68,214.65,4.65863446]
[1759179514064,4.65701113,214.73,214.66,32.96]
[1759179514377,5.33738337,214.72,214.66,37.61852976]
[1759179514570,0.68,214.71,214.66,37.61852976]
[1759179514768,26.0,214.69,214.54,13.59559401]
[1759179514975,4.02892478,214.68,214.56,13.59559401]
[1759179515175,0.68,214.67,214.57,32.96]
[1759179515391,1.0,214.62,214.57,32.96]
[1759179515697,1.0,214.62,214.57,33.17]
[1759179515976,1.0,214.62,214.58,4.66026656]
[1759179516178,1.0,214.62,214.59,32.96]
[1759179516861,1.0,214.62,214.59,33.17]
[1759179517062,1.0,214.62,214.6,13.80559401]
[1759179517264,1.0,214.62,214.61,32.94]
[1759179518060,1.0,214.62,214.61,37.59961511]
[1759179519285,1.0,214.62,214.61,37.80961511]
[1759179519583,1.0,214.62,214.61,37.59961511]
[1759179519890,1.0,214.62,214.61,37.80961511]
[1759179520073,1.0,214.62,214.61,51.40520912]
[1759179521573,1.0,214.62,214.61,56.06289678]
[1759179523589,1.0,214.62,214.61,55.85289678]
[1759179523965,1.0,214.62,214.61,56.06289678]
[1759179524167,1.0,214.62,214.61,55.85289678]
[1759179524976,1.0,214.62,214.61,56.06289678]
[1759179525285,1.0,214.62,214.61,55.85289678]
[1759179525880,1.0,214.62,214.61,56.06289678]
[1759179526085,1.0,214.62,214.61,55.85289678]
[1759179529680,1.68,214.62,214.61,63.59961511]
[1759179530286,1.0,214.62,214.61,58.94]
[1759179530508,1.68,214.62,214.55,18.25651221]
[1759179530683,1.68,214.62,214.56,4.86836743]
[1759179530977,0.68,214.61,214.57,32.94]
[1759179531171,0.68,214.6,214.57,32.94]
[1759179531373,1.0,214.62,214.57,32.94]
[1759179531374,0.67,214.59,214.57,32.94]
[1759179531574,0.67,214.58,214.57,32.94]
[1759179531868,0.67,214.58,214.57,26.0]
[1759179532182,0.67,214.58,214.57,32.94]
[1759179532384,0.67,214.58,214.54,4.66097206]
[1759179532586,0.67,214.57,214.54,4.66097206]
[1759179532793,0.67,214.56,214.54,4.66097206]
[1759179533089,4.65961511,214.61,214.55,32.94]
[1759179533592,0.67,214.6,214.55,37.60090342]
[1759179533776,0.67,214.59,214.55,37.60090342]
[1759179534093,0.67,214.58,214.55,37.60090342]
[1759179534297,0.67,214.57,214.55,37.60090342]
[1759179534593,0.67,214.57,214.55,49.25319892]
[1759179534797,0.67,214.57,214.55,32.94]
[1759179536070,0.67,214.57,214.55,37.60090978]
[1759179536498,0.67,214.56,214.55,32.94]
[1759179538277,5.33077966,214.56,214.52,14.32087324]
[1759179538505,0.67,214.55,214.53,32.94]
[1759179538685,0.67,214.54,214.53,32.94]
[1759179540090,0.67,214.57,214.53,32.94]
[1759179540402,0.67,214.56,214.53,37.60133069]
[1759179541005,0.67,214.55,214.53,37.60133069]
[1759179541187,43.30808843,214.62,214.53,37.60133069]
[1759179541398,0.67,214.55,214.53,37.60133069]
[1759179542797,0.67,214.57,214.53,37.60133069]
[1759179543110,0.67,214.56,214.53,32.94]
[1759179543422,31.6594003,214.62,214.53,32.94]
[1759179543423,0.67,214.55,214.53,32.94]
[1759179543781,4.65963043,214.61,214.53,37.60121825]
[1759179544099,0.67,214.6,214.53,37.60121825]
[1759179544284,0.67,214.59,214.53,37.60121825]
[1759179544485,0.67,214.58,214.53,37.60121825]
[1759179544688,0.67,214.6,214.53,37.81121825]
[1759179544894,0.67,214.6,214.54,13.59559401]
[1759179545117,1.67,214.62,214.56,12.59559401]
[1759179545316,1.67,214.62,214.57,32.94]
[1759179545610,0.67,214.61,214.57,32.94]
[1759179545780,0.67,214.61,214.58,4.66026656]
[1759179545982,0.67,214.61,214.59,32.94]
[1759179547301,0.67,214.61,214.59,37.59998526]
[1759179548396,1.0,214.62,214.59,32.94]
[1759179548609,0.67,214.6,214.59,32.94]
[1759179549396,1.0,214.62,214.59,37.60004939]
[1759179549597,1.67,214.62,214.59,37.60004939]
[1759179549985,1.0,214.62,214.59,37.60004939]
[1759179550817,1.0,214.62,214.6,13.80559401]
[1759179550983,1.0,214.62,214.61,32.94]
[1759179551414,1.0,214.62,214.61,37.59961511]
[1759179551795,1.0,214.62,214.61,51.19520912]
[1759179551992,1.0,214.62,214.61,51.40520912]
[1759179552512,1.0,214.62,214.61,50.40520912]
[1759179552690,1e-08,214.62,214.61,64.41244619]
[1759179552888,0.67,214.76,214.65,39.59559401]
[1759179553203,0.67,214.74,214.69,26.0]
[1759179553401,0.67,214.73,214.69,26.0]
[1759179553604,0.67,214.73,214.7,37.57750013]
[1759179554409,26.0,214.71,214.68,3.31614645]
[1759179554589,2.14340104,214.69,214.62,32.92]
[1759179554787,0.67,214.68,214.63,6.12]
[1759179555100,0.67,214.68,214.63,32.92]
[1759179555298,2.14340104,214.66,214.54,0.71]
[1759179555488,0.66,214.65,214.55,32.92]
[1759179555817,3.13252564,214.71,214.6,13.59559401]
[1759179555822,3.79252564,214.71,214.6,13.59559401]
[1759179556018,0.66,214.71,214.62,2.14340104]
[1759179556322,0.66,214.71,214.64,26.0]
[1759179556605,0.66,214.74,214.65,33.63]
[1759179556984,0.66,214.74,214.66,0.71]
[1759179557592,0.66,214.74,214.67,4.65831275]
[1759179557812,0.66,214.74,214.68,32.92]
[1759179558017,4.75666591,214.75,214.68,32.92]
[1759179558212,0.1,214.75,214.69,0.71]
[1759179559915,0.1,214.75,214.7,4.65766185]
[1759179560211,0.1,214.75,214.7,5.36766185]
[1759179561117,0.1,214.75,214.7,0.71]
[1759179561298,0.66,214.74,214.71,32.92]
[1759179561488,4.75664097,214.75,214.71,32.92]
[1759179561688,0.1,214.75,214.71,33.61]
[1759179561886,0.76,214.75,214.71,32.92]
[1759179562121,0.1,214.75,214.71,32.92]
[1759179562297,0.76,214.75,214.71,37.57741262]
[1759179562609,0.1,214.75,214.71,37.57741262]
[1759179562819,0.1,214.75,214.71,38.26741262]
[1759179563012,0.1,214.75,214.71,33.61]
[1759179565799,0.1,214.75,214.71,38.26743819]
[1759179566312,4.75663674,214.75,214.71,33.61]
[1759179566806,4.75663674,214.75,214.71,0.69]
[1759179566995,4.75663674,214.75,214.72,32.92]
[1759179567418,0.1,214.75,214.72,32.92]
[1759179570226,0.1,214.75,214.73,0.69]
[1759179571494,0.1,214.75,214.74,4.65679426]
[1759179571710,0.1,214.75,214.74,5.34679426]
[1759179571910,0.1,214.75,214.74,0.69]
[1759179573728,0.1,214.75,214.74,19.43188855]
[1759179574443,0.1,214.75,214.74,14.77509429]
[1759179574727,0.1,214.75,214.74,46.98509429]
[1759179575922,0.1,214.75,214.74,14.08509429]
[1759179576121,0.1,214.75,214.74,32.9]
[1759179579622,0.1,214.75,214.74,33.59]
[1759179580200,0.1,214.75,214.74,32.9]
[1759179580612,0.1,214.75,214.74,33.59]
[1759179581216,0.1,214.75,214.74,47.18559401]
[1759179582125,0.1,214.75,214.74,51.84238827]
[1759179584025,0.1,214.75,214.74,53.98578931]
[1759179584430,0.1,214.75,214.74,21.08578931]
[1759179584724,0.1,214.75,214.74,53.98578931]
[1759179587029,0.1,214.75,214.74,51.84238827]
[1759179590142,1e-08,214.75,214.74,51.84238827]
[1759179592224,1e-08,214.75,214.74,53.70879986]
[1759179593714,1e-08,214.75,214.74,22.9522009]
[1759179594030,1e-08,214.75,214.74,55.8522009]
[1759179595623,1e-08,214.75,214.74,22.9522009]
[1759179595822,1e-08,214.75,214.74,55.8322009]
[1759179596212,1e-08,214.75,214.74,53.68879986]
[1759179596929,1e-08,214.75,214.74,52.99879986]
[1759179597123,1e-08,214.75,214.74,20.11879986]
[1759179597510,1e-08,214.75,214.74,53.70879986]
[1759179598936,1e-08,214.75,214.74,49.45903468]
[1759179600232,1e-08,214.75,214.74,5.36679426]
[1759179600428,1e-08,214.75,214.74,38.24679426]
[1759179600937,1e-08,214.75,214.74,51.84238827]
[1759179602317,1e-08,214.75,214.74,52.30806769]
[1759179602717,1e-08,214.75,214.74,51.84238827]
[1759179603839,0.1,214.77,214.76,3.3424169]
[1759179604140,0.1,214.77,214.76,62.2224169]
[1759179604434,0.1,214.78,214.77,13.59559401]
[1759179604638,0.1,214.78,214.77,14.30559401]
[1759179605219,0.1,214.78,214.77,17.64801091]
[1759179605420,0.1,214.78,214.77,16.93801091]
[1759179605656,0.8,214.78,214.77,26.0]
[1759179605869,0.1,214.78,214.77,72.47559401]
[1759179606344,0.1,214.78,214.77,77.13173779]
[1759179606544,0.1,214.78,214.77,77.84173779]
[1759179607551,0.1,214.78,214.77,81.18415469]
[1759179608056,0.1,214.8,214.78,13.59559401]
[1759179608239,0.1,214.8,214.79,46.47559401]
[1759179608433,0.1,214.8,214.79,51.13130423]
[1759179608752,0.1,214.8,214.79,51.84130423]
[1759179608947,0.1,214.82,214.81,13.59559401]
[1759179609131,0.1,214.82,214.81,49.81801091]
[1759179610526,0.8,214.82,214.81,54.47328766]
[1759179611222,0.1,214.82,214.81,47.59328766]
[1759179611427,0.1,214.82,214.81,54.47328766]
[1759179611727,0.1,214.82,214.81,80.47328766]
[1759179611926,0.1,214.84,214.81,81.18328766]
[1759179612157,0.1,214.84,214.83,39.59559401]
[1759179612329,0.1,214.87,214.83,72.47559401]
[1759179612526,0.1,214.87,214.86,16.93801091]
[1759179612729,0.1,214.87,214.86,49.81801091]
[1759179613329,0.1,214.87,214.86,50.52801091]
[1759179614156,0.1,214.91,214.9,39.59559401]
[1759179614325,0.1,214.97,214.96,16.93801091]
[1759179614529,0.1,214.97,214.96,54.49003919]
[1759179615225,0.1,214.97,214.96,51.14762229]
[1759179615748,0.8,214.97,214.96,51.14762229]
[1759179615941,0.8,214.97,214.96,46.49559401]
[1759179616153,0.8,214.97,214.96,32.9]
[1759179616533,0.8,214.97,214.92,29.3424169]
[1759179616534,0.8,214.97,214.94,26.0]
[1759179616757,0.7,214.96,214.95,32.9]
[1759179616927,0.1,214.97,214.95,32.9]
[1759179617128,0.7,214.96,214.95,32.9]
[1759179617532,0.7,214.96,214.93,13.59559401]
[1759179617751,0.7,214.95,214.94,32.94]
[1759179618541,0.7,214.95,214.92,4.65288576]
[1759179618742,0.7,214.94,214.93,32.94]
[1759179619752,0.7,214.94,214.93,32.92]
[1759179620946,0.1,214.97,214.93,37.57267761]
[1759179621146,0.7,214.96,214.93,37.57267761]
[1759179621349,0.68,214.95,214.93,37.57267761]
[1759179622942,0.68,214.95,214.93,32.92]
[1759179623149,0.68,214.95,214.9,18.24892113]
[1759179623365,0.68,214.94,214.91,32.9]
[1759179623563,0.68,214.93,214.91,32.9]
[1759179624465,0.68,214.92,214.91,32.9]
[1759179624669,0.68,214.92,214.9,26.0]
[1759179624853,0.68,214.92,214.91,32.9]
[1759179625743,0.68,214.92,214.9,26.0]
[1759179626067,4.65219571,214.96,214.91,32.88]
[1759179626437,0.68,214.95,214.91,32.88]
[1759179626643,0.68,214.94,214.91,32.88]
[1759179626855,0.68,214.93,214.91,32.88]
[1759179627067,0.68,214.93,214.91,37.53305268]
[1759179627270,0.68,214.95,214.91,37.53305268]
[1759179627473,0.68,214.94,214.91,37.53305268]
[1759179628569,0.68,214.96,214.91,37.53305268]
[1759179628781,0.68,214.95,214.91,37.53305268]
[1759179629477,0.1,214.97,214.91,37.53305268]
[1759179629668,0.78,214.97,214.91,38.24305268]
[1759179630043,0.68,214.96,214.91,37.53305268]
[1759179630249,0.68,214.95,214.91,37.53305268]
[1759179630754,0.68,214.95,214.8,13.99090591]
[1759179630755,0.68,214.94,214.84,4.65460331]
[1759179630974,0.68,214.93,214.85,32.86]
[1759179631177,0.68,214.92,214.86,32.92]
[1759179631347,0.68,214.91,214.86,32.92]
[1759179631554,0.68,214.9,214.86,32.92]
[1759179631880,0.68,214.89,214.86,32.92]
[1759179632047,3.3424169,214.95,214.86,32.92]
[1759179632048,16.28437164,214.93,214.86,32.92]
[1759179632253,0.68,214.88,214.86,32.92]
[1759179632453,0.68,214.87,214.86,32.92]
[1759179633105,0.68,214.88,214.86,32.92]
[1759179633383,0.68,214.9,214.86,32.92]
[1759179633585,4.65267761,214.93,214.86,33.63]
[1759179633752,0.68,214.92,214.86,33.63]
[1759179633957,0.68,214.91,214.86,32.92]
[1759179634186,0.68,214.91,214.86,37.57416937]
[1759179634386,16.28363263,214.94,214.86,32.92]
[1759179634551,0.68,214.96,214.87,33.63]
[1759179634750,0.68,214.95,214.88,32.92]
[1759179634976,16.38155783,214.97,214.85,39.59559401]
[1759179634977,0.68,214.94,214.89,32.94]
[1759179635175,0.68,214.93,214.84,30.65452489]
[1759179635377,0.68,214.92,214.84,26.0]
[1759179635579,0.68,214.92,214.85,32.94]
[1759179635760,0.68,214.91,214.83,0.71]
[1759179636080,0.68,214.91,214.84,32.94]
[1759179636288,5.33322792,214.91,214.84,37.59443867]
[1759179636587,4.65285715,214.93,214.85,0.71]
[1759179636759,0.68,214.95,214.85,14.30559401]
[1759179636962,0.68,214.95,214.87,3.3424169]
[1759179637153,5.33225573,214.95,214.88,33.65]
[1759179637353,4.65225573,214.95,214.88,33.65]
[1759179637585,0.68,214.94,214.88,33.65]
[1759179637980,0.68,214.94,214.88,0.71]
[1759179638186,5.33258815,214.94,214.89,32.94]
[1759179638389,0.68,214.96,214.9,0.71]
[1759179638595,0.68,214.96,214.89,32.94]
[1759179638776,0.68,214.96,214.89,37.59353828]
[1759179639270,0.68,214.95,214.89,32.94]
[1759179639493,0.68,214.95,214.89,37.59352091]
[1759179639892,0.68,214.95,214.89,38.30352091]
[1759179640090,0.68,214.95,214.89,32.94]
[1759179640297,5.33246115,214.94,214.89,32.94]
[1759179640471,0.1,214.97,214.9,0.71]
[1759179640676,0.1,214.97,214.93,3.3424169]
[1759179641003,0.1,214.97,214.94,33.67]
[1759179641373,0.1,214.97,214.94,32.96]
[1759179641580,5.43181375,214.97,214.91,0.71]
[1759179641792,5.43181375,214.97,214.92,58.94]
[1759179642105,0.1,214.97,214.93,0.71]
[1759179642272,0.1,214.97,214.94,5.36246115]
[1759179642674,0.1,214.97,214.95,0.71]
[1759179642892,0.1,214.97,214.96,32.96]
[1759179643801,5.43181188,214.97,214.96,32.96]
[1759179644181,5.43181188,214.97,214.95,32.96]
[1759179644380,0.68,214.96,214.95,32.96]
[1759179644875,4.75181188,214.97,214.95,32.96]
[1759179645101,5.43181188,214.97,214.95,32.96]
[1759179645314,0.68,214.96,214.95,32.94]
[1759179645479,0.68,214.96,214.94,32.94]
[1759179645875,4.75181188,214.97,214.94,32.94]
[1759179646105,5.43181188,214.97,214.94,32.94]
[1759179647093,0.68,214.96,214.94,32.94]
[1759179647293,4.75181188,214.97,214.94,32.94]
[1759179648395,5.43181188,214.97,214.94,32.94]
[1759179649321,4.75181188,214.97,214.92,0.71]
[1759179649611,4.75181188,214.97,214.93,33.65]
[1759179650308,5.43181188,214.97,214.93,32.94]
[1759179650678,5.43181188,214.97,214.93,32.92]
[1759179650905,4.75181188,214.97,214.93,33.63]
[1759179651207,5.43181188,214.97,214.93,33.63]
[1759179651395,5.43181188,214.97,214.93,32.92]
[1759179651594,4.75181188,214.97,214.93,32.92]
[1759179651799,0.68,214.96,214.91,0.71]
[1759179652000,0.68,214.96,214.92,32.92]
[1759179653096,0.68,214.95,214.92,32.9]
[1759179653302,0.68,214.94,214.92,32.9]
[1759179653503,5.33267761,214.93,214.85,0.71]
[1759179653815,4.65267761,214.93,214.86,32.94]
[1759179653987,4.65267761,214.93,214.87,0.71]
[1759179655086,0.1,214.97,214.9,3.3424169]
[1759179655299,0.1,214.97,214.91,33.65]
[1759179655711,0.1,214.97,214.92,5.3628941]
[1759179656205,0.1,214.97,214.93,0.71]
[1759179657590,0.1,214.97,214.94,29.87920803]
[1759179657799,0.1,214.97,214.95,33.67]
[1759179658193,0.1,214.97,214.96,0.71]
[1759179660310,0.1,214.97,214.96,32.96]
[1759179660698,0.1,214.97,214.96,33.67]
[1759179661289,0.78,214.97,214.83,13.87460222]
[1759179661520,0.68,214.96,214.87,0.71]
[1759179661888,0.68,214.96,214.85,0.71]
[1759179662097,16.28285647,214.95,214.86,32.4]
[1759179662316,0.68,214.94,214.86,32.4]
[1759179662611,26.0,214.92,214.85,0.71]
[1759179662808,0.68,214.93,214.82,33.71]
[1759179662809,26.0,214.9,214.82,33.71]
[1759179663003,26.0,214.9,214.83,33.0]
[1759179663004,0.68,214.89,214.83,33.0]
[1759179664021,4.65376023,214.88,214.83,33.0]
[1759179664195,0.68,214.87,214.83,33.0]
[1759179664510,0.68,214.86,214.83,33.0]
[1759179664911,4.65376023,214.88,214.83,33.0]
[1759179665293,0.68,214.87,214.83,33.0]
[1759179665715,16.28816082,214.88,214.83,33.0]
[1759179666009,4.65354367,214.89,214.84,0.71]
[1759179666212,5.33354367,214.89,214.84,0.71]
[1759179667185,4.86829755,214.89,214.84,0.71]
[1759179667389,2.81586219,214.88,214.78,0.71]
[1759179667605,26.0,214.86,214.7,2.13586219]
[1759179667810,26.0,214.86,214.77,33.71]
[1759179668025,136.25400774,214.87,214.78,17.00574447]
[1759179668318,136.25399056,214.87,214.78,5.36592699]
[1759179668514,131.6,214.87,214.79,0.71]
[1759179668713,131.6,214.87,214.79,14.30559401]
[1759179668901,131.6,214.87,214.8,0.71]
[1759179669218,4.65312795,214.91,214.81,33.02]
[1759179669391,4.65312795,214.91,214.82,0.71]
[1759179670201,4.65312795,214.91,214.83,4.65484336]
[1759179670501,4.65312795,214.91,214.84,0.71]
[1759179671027,0.68,214.9,214.83,4.65484336]
[1759179671227,0.68,214.9,214.83,5.36484336]
[1759179671406,0.68,214.89,214.81,0.71]
[1759179671595,0.68,214.89,214.82,33.0]
[1759179671802,18.42176665,214.91,214.82,33.0]
[1759179671803,19.10176665,214.91,214.83,0.71]
[1759179672901,5.33312795,214.91,214.83,5.36475385]
[1759179673211,5.33312795,214.91,214.84,0.71]
[1759179674298,5.33312795,214.91,214.85,4.65441005]
[1759179674623,0.7,214.94,214.86,0.67]
[1759179675013,26.7,214.94,214.87,33.0]
[1759179675315,26.7,214.94,214.88,0.67]
[1759179675701,0.1,214.97,214.88,0.67]
[1759179676100,5.45182809,214.97,214.88,0.67]
[1759179676716,5.45182809,214.97,214.88,5.32364758]
[1759179677031,5.45182809,214.97,214.89,33.69]
[1759179677329,0.1,214.97,214.9,0.67]
[1759179678200,0.1,214.97,214.91,33.02]
[1759179678407,4.75182425,214.97,214.91,37.67309065]
[1759179678935,0.1,214.97,214.91,37.67309065]
[1759179679297,0.7,214.96,214.88,26.67]
[1759179679596,0.7,214.96,214.86,4.65419342]
[1759179679597,0.7,214.95,214.86,5.32419342]
[1759179679820,0.7,214.95,214.87,33.67]
[1759179680637,4.65246115,214.94,214.87,33.67]
[1759179680833,4.65246115,214.94,214.87,38.32384765]
[1759179681506,4.65246115,214.94,214.87,37.65384765]
[1759179681838,4.65246115,214.94,214.88,0.69]
[1759179682513,5.36246115,214.94,214.88,0.69]
[1759179683330,19.12947621,214.94,214.84,26.69]
[1759179683530,0.71,214.93,214.85,33.0]
[1759179683708,0.71,214.92,214.85,33.69]
[1759179684023,0.71,214.91,214.85,33.69]
[1759179684613,0.71,214.91,214.85,33.67]
[1759179685606,4.65332712,214.9,214.85,33.67]
[1759179685907,4.65332712,214.9,214.86,0.69]
[1759179686332,5.36332712,214.9,214.86,0.69]
[1759179686528,5.36332712,214.9,214.85,32.98]
[1759179686828,0.71,214.92,214.86,0.69]
[1759179688239,5.3629664,214.92,214.86,0.69]
[1759179688536,5.3629664,214.92,214.86,5.34410758]
[1759179689110,16.99520165,214.92,214.86,0.69]
[1759179689305,16.99520165,214.92,214.85,32.98]
[1759179689531,0.71,214.91,214.85,32.98]
[1759179689712,0.71,214.91,214.85,33.67]
[1759179689905,0.71,214.91,214.85,38.32440371]
[1759179690411,5.36332712,214.9,214.85,32.98]
[1759179690617,5.36332712,214.9,214.85,33.67]
[1759179690813,5.36332712,214.9,214.8,26.0]
[1759179690814,0.71,214.89,214.81,0.69]
[1759179691543,0.71,214.89,214.81,33.65]
[1759179691711,0.71,214.88,214.81,33.65]
[1759179692426,4.65397682,214.87,214.81,33.65]
[1759179692839,0.71,214.88,214.81,38.30517706]
[1759179693016,0.71,214.88,214.82,0.69]
[1759179693216,5.36378176,214.88,214.82,0.69]
[1759179694633,16.99818235,214.88,214.82,0.69]
[1759179694828,16.99818235,214.88,214.81,32.96]
[1759179695138,0.71,214.87,214.81,32.96]
[1759179695515,0.71,214.86,214.77,0.69]
[1759179695737,26.0,214.85,214.77,33.63]
[1759179696110,0.71,214.84,214.77,33.63]
[1759179696311,0.71,214.84,214.78,0.69]
[1759179696527,26.0,214.85,214.78,0.69]
[1759179696732,4.65462669,214.84,214.78,5.34572192]
[1759179696911,30.65462669,214.84,214.79,0.69]
[1759179697111,30.65462669,214.84,214.8,0.69]
[1759179697326,31.36462669,214.84,214.78,5.34572192]
[1759179697735,30.65462669,214.84,214.79,0.69]
[1759179697932,30.65462669,214.84,214.8,0.69]
[1759179698612,4.65437395,214.86,214.8,4.6554106]
[1759179698821,30.65437395,214.86,214.81,0.69]
[1759179699017,31.36437395,214.86,214.81,0.69]
[1759179699715,0.71,214.85,214.78,4.65579538]
[1759179699935,0.71,214.85,214.79,0.69]
[1759179700935,5.36457919,214.85,214.79,5.34561299]
[1759179701734,0.71,214.85,214.8,0.69]
[1759179701934,30.65419456,214.86,214.81,0.69]
[1759179702337,30.65419456,214.86,214.82,0.69]
[1759179703164,0.71,214.85,214.79,0.69]
[1759179703812,4.65462669,214.84,214.79,5.34565713]
[1759179704017,4.65462669,214.84,214.8,0.69]
[1759179704531,5.36445413,214.85,214.8,0.69]
[1759179704728,5.36445413,214.85,214.79,4.65565713]
[1759179704933,5.36445413,214.85,214.8,0.69]
[1759179706618,30.6542385,214.86,214.81,0.69]
[1759179706929,131.6,214.89,214.82,0.69]
[1759179708039,136.25356393,214.89,214.83,4.65484336]
[1759179708430,131.6,214.89,214.84,33.63]
[1759179708627,131.6,214.89,214.85,0.69]
[1759179709436,132.31,214.89,214.85,0.69]
[1759179709954,13.59559401,214.95,214.84,32.94]
[1759179709955,0.71,214.93,214.87,4.65397682]
[1759179710128,5.36268416,214.93,214.87,4.65397682]
[1759179711544,5.36268416,214.93,214.87,0.66]
[1759179712125,131.6,214.95,214.87,0.66]
[1759179712327,4.65258583,214.94,214.87,0.66]
[1759179714855,5.37258583,214.94,214.83,2.13586219]
[1759179715039,0.72,214.93,214.84,37.59462669]
[1759179715431,0.72,214.92,214.84,38.25462669]
[1759179715626,0.72,214.91,214.84,38.25462669]
[1759179716052,5.37313647,214.91,214.84,37.59462669]
[1759179716353,131.6,214.95,214.85,0.66]
[1759179716526,136.25227699,214.95,214.85,0.66]
[1759179716726,0.72,214.94,214.85,0.66]
[1759179717648,4.65267761,214.93,214.86,4.65419342]
[1759179717953,0.72,214.92,214.86,4.65419342]
[1759179719337,5.37301747,214.92,214.86,4.65419342]
[1759179719626,0.72,214.92,214.87,32.92]
[1759179719832,131.6,214.95,214.88,0.66]
[1759179720034,0.72,214.92,214.87,32.92]